[Event "Early-Titled-Tuesday-Blitz-February-27-2024"]
[Site "Chess.com"]
[Date "2024.02.27"]
[Round "9"]
[White "VladimirBugayev"]
[Black "Kostukov_Alex"]
[Result "1-0"]
[WhiteElo "2257"]
[BlackElo "2359"]
[TimeControl "180+1"]
[EndTime "9:44:35 PST"]
[Termination "VladimirBugayev won on time"]

1. e4 {[%clk 0:03:00.9]} 1... c5 {[%clk 0:02:58.9]} 2. Nc3 {[%clk 0:03:00.6]}
2... g6 {[%clk 0:02:58.9]} 3. Bc4 {[%clk 0:02:57.1]} 3... Bg7 {[%clk 0:02:55.7]}
4. h4 {[%clk 0:02:56.2]} 4... h6 {[%clk 0:02:45.3]} 5. Qf3 {[%clk 0:02:51.9]}
5... e6 {[%clk 0:02:45.5]} 6. d4 {[%clk 0:02:36.9]} 6... cxd4 {[%clk 0:02:37]}
7. Nb5 {[%clk 0:02:36.9]} 7... d6 {[%clk 0:01:33.6]} 8. Bf4 {[%clk 0:02:35.1]}
8... Be5 {[%clk 0:01:32.7]} 9. Bxe5 {[%clk 0:02:32.3]} 9... dxe5 {[%clk
0:01:32.5]} 10. Qa3 {[%clk 0:02:29.1]} 10... Ne7 {[%clk 0:01:12.4]} 11. Nd6+
{[%clk 0:02:21.6]} 11... Kf8 {[%clk 0:01:11.9]} 12. f4 {[%clk 0:02:21.3]} 12...
Nbc6 {[%clk 0:01:01]} 13. f5 {[%clk 0:02:08.3]} 13... Qa5+ {[%clk 0:00:43.3]}
14. Qxa5 {[%clk 0:01:49.2]} 14... Nxa5 {[%clk 0:00:43.2]} 15. fxg6 {[%clk
0:01:37.3]} 15... Nxg6 {[%clk 0:00:28.3]} 16. Bd3 {[%clk 0:01:28]} 16... Ke7
{[%clk 0:00:20.5]} 17. Nb5 {[%clk 0:01:26.7]} 17... a6 {[%clk 0:00:18.4]} 18.
Na3 {[%clk 0:01:25.8]} 18... b5 {[%clk 0:00:17.8]} 19. g3 {[%clk 0:01:18.4]}
19... Bd7 {[%clk 0:00:16.8]} 20. Nf3 {[%clk 0:01:16.2]} 20... Rag8 {[%clk
0:00:11.8]} 21. h5 {[%clk 0:01:08.5]} 21... Nf8 {[%clk 0:00:11.8]} 22. Nxe5
{[%clk 0:01:08.5]} 22... Rxg3 {[%clk 0:00:08.4]} 23. O-O-O {[%clk 0:01:08.7]}
23... f6 {[%clk 0:00:07.8]} 24. Nxd7 {[%clk 0:01:07.8]} 24... Nxd7 {[%clk
0:00:08.5]} 25. Nb1 {[%clk 0:00:59]} 25... Rhg8 {[%clk 0:00:08]} 26. Nd2 {[%clk
0:00:58.8]} 26... e5 {[%clk 0:00:07.7]} 27. Bf1 {[%clk 0:00:50.6]} 27... Nc5
{[%clk 0:00:07.4]} 28. Bh3 {[%clk 0:00:49.5]} 28... Na4 {[%clk 0:00:06.4]} 29.
Bf5 {[%clk 0:00:42]} 29... Nc4 {[%clk 0:00:05.8]} 30. Nf1 {[%clk 0:00:37.4]}
30... Rg2 {[%clk 0:00:04.8]} 31. b3 {[%clk 0:00:34.5]} 31... Na3 {[%clk
0:00:02.9]} 32. Nd2 {[%clk 0:00:34.5]} 32... Nc3 {[%clk 0:00:02]} 33. Rdf1
{[%clk 0:00:30.3]} 1-0

[Event "Early-Titled-Tuesday-Blitz-February-27-2024"]
[Site "Chess.com"]
[Date "2024.02.27"]
[Round "9"]
[White "Vesapesa"]
[Black "InitiatingASC"]
[Result "0-1"]
[WhiteElo "2231"]
[BlackElo "2363"]
[TimeControl "180+1"]
[EndTime "9:44:35 PST"]
[Termination "InitiatingASC won by resignation"]

1. e4 {[%clk 0:03:00.9]} 1... c5 {[%clk 0:02:59.5]} 2. Nf3 {[%clk 0:03:00.4]}
2... Nc6 {[%clk 0:02:55.9]} 3. Bb5 {[%clk 0:02:59.4]} 3... Nf6 {[%clk
0:02:55.6]} 4. e5 {[%clk 0:02:54.1]} 4... Nd5 {[%clk 0:02:55.1]} 5. Nc3 {[%clk
0:02:51]} 5... Nc7 {[%clk 0:02:54]} 6. Bxc6 {[%clk 0:02:49.5]} 6... bxc6 {[%clk
0:02:54.3]} 7. O-O {[%clk 0:02:40.9]} 7... g6 {[%clk 0:02:54.5]} 8. Re1 {[%clk
0:02:39.8]} 8... Bg7 {[%clk 0:02:54.4]} 9. d3 {[%clk 0:02:34.1]} 9... O-O {[%clk
0:02:51.6]} 10. h3 {[%clk 0:02:32.5]} 10... f6 {[%clk 0:02:50.5]} 11. Bf4 {[%clk
0:02:31]} 11... Ne6 {[%clk 0:02:47.9]} 12. Bh2 {[%clk 0:02:30.1]} 12... Nd4
{[%clk 0:02:40.9]} 13. Ne4 {[%clk 0:02:16.4]} 13... Nxf3+ {[%clk 0:02:28.4]} 14.
Qxf3 {[%clk 0:02:08]} 14... fxe5 {[%clk 0:02:28.4]} 15. Qe3 {[%clk 0:02:02.5]}
15... d6 {[%clk 0:02:26.2]} 16. h4 {[%clk 0:01:59.1]} 16... Qe8 {[%clk
0:02:13.5]} 17. Ng5 {[%clk 0:01:54.9]} 17... Bh6 {[%clk 0:02:06.6]} 18. Qe4
{[%clk 0:01:51]} 18... Bf5 {[%clk 0:01:59.4]} 19. Qc4+ {[%clk 0:01:47.5]} 19...
Kh8 {[%clk 0:01:50.2]} 20. f4 {[%clk 0:01:41.6]} 20... Bxg5 {[%clk 0:01:39.8]}
21. hxg5 {[%clk 0:01:36.9]} 21... exf4 {[%clk 0:01:34.1]} 22. Bxf4 {[%clk
0:01:36.1]} 22... Qf7 {[%clk 0:01:33.9]} 23. Qc3+ {[%clk 0:01:08.1]} 23... e5
{[%clk 0:01:32.3]} 24. Bd2 {[%clk 0:00:59.9]} 24... Qd5 {[%clk 0:01:27]} 25. Rf1
{[%clk 0:00:54.6]} 25... Kg7 {[%clk 0:01:14.4]} 26. Rae1 {[%clk 0:00:50.2]}
26... Rab8 {[%clk 0:00:57.2]} 27. Kh2 {[%clk 0:00:43.2]} 27... Rb4 {[%clk
0:00:54.5]} 28. g3 {[%clk 0:00:36.9]} 28... Rfb8 {[%clk 0:00:31.4]} 29. b3
{[%clk 0:00:35.8]} 29... Rg4 {[%clk 0:00:28.8]} 30. Qa5 {[%clk 0:00:27.2]} 30...
Qf7 {[%clk 0:00:25.8]} 31. Re2 {[%clk 0:00:19.7]} 31... Qb7 {[%clk 0:00:18.9]}
32. Ref2 {[%clk 0:00:18.9]} 32... Qb6 {[%clk 0:00:18.3]} 33. Qa4 {[%clk
0:00:17.5]} 33... Rxa4 {[%clk 0:00:17.5]} 0-1

[Event "Early-Titled-Tuesday-Blitz-February-27-2024"]
[Site "Chess.com"]
[Date "2024.02.27"]
[Round "9"]
[White "hmatyi07"]
[Black "Better_Chess_Faster"]
[Result "0-1"]
[WhiteElo "2288"]
[BlackElo "2175"]
[TimeControl "180+1"]
[EndTime "9:44:35 PST"]
[Termination "Better_Chess_Faster won by resignation"]

1. e4 {[%clk 0:02:57.5]} 1... Nf6 {[%clk 0:02:59.6]} 2. e5 {[%clk 0:02:57.2]}
2... Nd5 {[%clk 0:02:59.6]} 3. d4 {[%clk 0:02:57.9]} 3... d6 {[%clk 0:03:00]} 4.
c4 {[%clk 0:02:58.5]} 4... Nb6 {[%clk 0:03:00.2]} 5. f4 {[%clk 0:02:59.2]} 5...
g6 {[%clk 0:03:00.1]} 6. Be3 {[%clk 0:02:56.8]} 6... Bg7 {[%clk 0:02:59.5]} 7.
Qd2 {[%clk 0:02:56.3]} 7... Be6 {[%clk 0:02:57.7]} 8. d5 {[%clk 0:02:53.2]} 8...
Bf5 {[%clk 0:02:54.9]} 9. Nf3 {[%clk 0:02:50.9]} 9... Bg4 {[%clk 0:02:52.6]} 10.
exd6 {[%clk 0:02:33]} 10... Bxf3 {[%clk 0:02:42.4]} 11. d7+ {[%clk 0:01:57.6]}
11... Qxd7 {[%clk 0:02:32.3]} 12. gxf3 {[%clk 0:01:56.5]} 12... O-O {[%clk
0:02:30.9]} 13. h4 {[%clk 0:01:51.8]} 13... h5 {[%clk 0:02:27.9]} 14. Nc3 {[%clk
0:01:51.5]} 14... c6 {[%clk 0:02:25.7]} 15. O-O-O {[%clk 0:01:39.9]} 15... cxd5
{[%clk 0:02:24.8]} 16. c5 {[%clk 0:01:23.9]} 16... Bxc3 {[%clk 0:02:10.8]} 17.
Qxc3 {[%clk 0:01:18.4]} 17... Na4 {[%clk 0:02:08.7]} 18. Qb3 {[%clk 0:01:09.3]}
18... Na6 {[%clk 0:01:57.2]} 19. Bb5 {[%clk 0:01:02.7]} 19... Qc7 {[%clk
0:01:31.2]} 20. Bxa4 {[%clk 0:00:46]} 20... Nxc5 {[%clk 0:01:30.5]} 21. Bxc5
{[%clk 0:00:46.5]} 21... Qxc5+ {[%clk 0:01:30]} 22. Kb1 {[%clk 0:00:47.1]} 22...
Rac8 {[%clk 0:01:16.9]} 23. Rxd5 {[%clk 0:00:43.1]} 23... Qf2 {[%clk 0:01:13.9]}
24. Rhd1 {[%clk 0:00:39.2]} 24... Qxh4 {[%clk 0:01:07]} 25. Qxb7 {[%clk
0:00:36.7]} 25... Qxf4 {[%clk 0:01:03.1]} 26. Qxe7 {[%clk 0:00:32.1]} 26... Qxa4
{[%clk 0:00:51.6]} 27. R5d2 {[%clk 0:00:26.6]} 27... Rfe8 {[%clk 0:00:46.3]} 28.
Qf6 {[%clk 0:00:25.1]} 28... Qc6 {[%clk 0:00:40.6]} 29. Qd4 {[%clk 0:00:24.6]}
29... Red8 {[%clk 0:00:37.1]} 30. Qxd8+ {[%clk 0:00:20.7]} 30... Rxd8 {[%clk
0:00:37.1]} 31. Rxd8+ {[%clk 0:00:21.6]} 31... Kg7 {[%clk 0:00:37.1]} 32. R1d3
{[%clk 0:00:17.8]} 32... h4 {[%clk 0:00:36.2]} 33. R8d4 {[%clk 0:00:16.9]} 33...
h3 {[%clk 0:00:34.3]} 34. Rh4 {[%clk 0:00:15.5]} 34... Qe6 {[%clk 0:00:34]} 35.
f4 {[%clk 0:00:10.9]} 35... Qe1+ {[%clk 0:00:33.1]} 36. Kc2 {[%clk 0:00:11.3]}
36... Qxh4 {[%clk 0:00:33]} 0-1

[Event "Early-Titled-Tuesday-Blitz-February-27-2024"]
[Site "Chess.com"]
[Date "2024.02.27"]
[Round "9"]
[White "Goryachkina"]
[Black "whiteglovethief"]
[Result "1-0"]
[WhiteElo "2684"]
[BlackElo "2505"]
[TimeControl "180+1"]
[EndTime "9:44:43 PST"]
[Termination "Goryachkina won on time"]

1. e4 {[%clk 0:02:52.2]} 1... e6 {[%clk 0:02:59.6]} 2. d4 {[%clk 0:02:52.1]}
2... d5 {[%clk 0:02:59]} 3. Nd2 {[%clk 0:02:52.3]} 3... c5 {[%clk 0:02:59]} 4.
exd5 {[%clk 0:02:52.1]} 4... exd5 {[%clk 0:02:59.9]} 5. Ngf3 {[%clk 0:02:51.3]}
5... Nc6 {[%clk 0:03:00.8]} 6. Bb5 {[%clk 0:02:50.9]} 6... Bd6 {[%clk
0:03:01.2]} 7. O-O {[%clk 0:02:50.7]} 7... Ne7 {[%clk 0:03:00.1]} 8. dxc5 {[%clk
0:02:49.6]} 8... Bxc5 {[%clk 0:03:01]} 9. Nb3 {[%clk 0:02:49.8]} 9... Bd6 {[%clk
0:03:01.2]} 10. Bg5 {[%clk 0:02:46.6]} 10... O-O {[%clk 0:02:59.5]} 11. Re1
{[%clk 0:02:46.7]} 11... Bg4 {[%clk 0:02:59.2]} 12. Be2 {[%clk 0:02:36.5]} 12...
h6 {[%clk 0:02:57.6]} 13. Bh4 {[%clk 0:02:35.5]} 13... Qb6 {[%clk 0:02:54]} 14.
Bg3 {[%clk 0:02:34]} 14... Rad8 {[%clk 0:02:52.4]} 15. Bxd6 {[%clk 0:02:31.5]}
15... Rxd6 {[%clk 0:02:53.3]} 16. Nfd4 {[%clk 0:02:29.8]} 16... Bc8 {[%clk
0:02:44.4]} 17. c3 {[%clk 0:02:27.9]} 17... Nf5 {[%clk 0:02:30.3]} 18. Nxf5
{[%clk 0:02:21.7]} 18... Bxf5 {[%clk 0:02:27.1]} 19. Bd3 {[%clk 0:02:22]} 19...
Bxd3 {[%clk 0:02:15]} 20. Qxd3 {[%clk 0:02:22.9]} 20... d4 {[%clk 0:02:12.7]}
21. Rad1 {[%clk 0:02:21.5]} 21... Rfd8 {[%clk 0:02:12]} 22. c4 {[%clk
0:02:04.5]} 22... Nb4 {[%clk 0:01:57.5]} 23. Qd2 {[%clk 0:01:58.1]} 23... Rg6
{[%clk 0:01:17.9]} 24. c5 {[%clk 0:01:48]} 24... Qc6 {[%clk 0:01:14.8]} 25. g3
{[%clk 0:01:44.3]} 25... Nxa2 {[%clk 0:00:58]} 26. Nxd4 {[%clk 0:01:26.9]} 26...
Qxc5 {[%clk 0:00:51.7]} 27. Nb3 {[%clk 0:01:07.3]} 27... Rxd2 {[%clk 0:00:47.6]}
28. Nxc5 {[%clk 0:01:07.3]} 28... Rxb2 {[%clk 0:00:46.9]} 29. Rd8+ {[%clk
0:01:06.7]} 29... Kh7 {[%clk 0:00:46.9]} 30. Nd7 {[%clk 0:01:05.7]} 30... h5
{[%clk 0:00:20.5]} 31. Nf8+ {[%clk 0:00:55.7]} 31... Kh6 {[%clk 0:00:20.1]} 32.
Nxg6 {[%clk 0:00:55.7]} 32... Kxg6 {[%clk 0:00:21]} 33. Re7 {[%clk 0:00:55.9]}
33... Nc3 {[%clk 0:00:06.3]} 34. Rdd7 {[%clk 0:00:55.3]} 34... a5 {[%clk
0:00:01.9]} 35. Rxf7 {[%clk 0:00:52.5]} 35... a4 {[%clk 0:00:01.1]} 36. Rxg7+
{[%clk 0:00:52.5]} 36... Kf6 {[%clk 0:00:01.5]} 37. Rdf7+ {[%clk 0:00:47.4]}
37... Ke6 {[%clk 0:00:02]} 38. Rxb7 {[%clk 0:00:45.4]} 38... Kd6 {[%clk
0:00:02.7]} 39. Rxb2 {[%clk 0:00:42.4]} 1-0

[Event "Early-Titled-Tuesday-Blitz-February-27-2024"]
[Site "Chess.com"]
[Date "2024.02.27"]
[Round "9"]
[White "UK_23"]
[Black "NLLO777"]
[Result "1-0"]
[WhiteElo "2385"]
[BlackElo "2531"]
[TimeControl "180+1"]
[EndTime "9:44:45 PST"]
[Termination "UK_23 won by resignation"]

1. e4 {[%clk 0:03:00.9]} 1... c5 {[%clk 0:02:59.9]} 2. Nf3 {[%clk 0:03:00.9]}
2... d6 {[%clk 0:03:00.3]} 3. d4 {[%clk 0:03:00.1]} 3... cxd4 {[%clk 0:03:01.2]}
4. Qxd4 {[%clk 0:03:00.4]} 4... Nc6 {[%clk 0:03:00.5]} 5. Qe3 {[%clk 0:03:00.7]}
5... Nf6 {[%clk 0:03:00.4]} 6. h3 {[%clk 0:03:00.5]} 6... g6 {[%clk 0:03:00.5]}
7. Be2 {[%clk 0:03:01]} 7... Bg7 {[%clk 0:03:01]} 8. O-O {[%clk 0:03:01.7]} 8...
O-O {[%clk 0:03:01.7]} 9. Rd1 {[%clk 0:03:02.4]} 9... Qc7 {[%clk 0:03:01.2]} 10.
c4 {[%clk 0:03:02.9]} 10... Be6 {[%clk 0:02:57.1]} 11. Nc3 {[%clk 0:03:03.3]}
11... Rac8 {[%clk 0:02:56.8]} 12. Rb1 {[%clk 0:02:56.9]} 12... a6 {[%clk
0:02:54.1]} 13. b3 {[%clk 0:02:56.9]} 13... Rfd8 {[%clk 0:02:39.6]} 14. Bb2
{[%clk 0:02:51.5]} 14... Qa5 {[%clk 0:02:26.5]} 15. a3 {[%clk 0:02:45.4]} 15...
Qc5 {[%clk 0:02:21.1]} 16. Qd2 {[%clk 0:02:40.2]} 16... Nd7 {[%clk 0:02:03]} 17.
b4 {[%clk 0:02:39.2]} 17... Qa7 {[%clk 0:02:00.7]} 18. Nd5 {[%clk 0:02:37.9]}
18... Bxb2 {[%clk 0:01:56.6]} 19. Qxb2 {[%clk 0:02:36.1]} 19... Bxd5 {[%clk
0:01:56.6]} 20. exd5 {[%clk 0:02:21.7]} 20... Nce5 {[%clk 0:01:57.5]} 21. Nxe5
{[%clk 0:02:09.6]} 21... Nxe5 {[%clk 0:01:58.4]} 22. c5 {[%clk 0:02:08.5]} 22...
Nd7 {[%clk 0:01:53.4]} 23. cxd6 {[%clk 0:01:44]} 23... exd6 {[%clk 0:01:54.3]}
24. Bg4 {[%clk 0:01:42.5]} 24... h5 {[%clk 0:01:42.6]} 25. Bxd7 {[%clk
0:01:40.1]} 25... Rxd7 {[%clk 0:01:43.5]} 26. Re1 {[%clk 0:01:36.9]} 26... Rdc7
{[%clk 0:01:31.1]} 27. Qf6 {[%clk 0:01:35.9]} 27... Qb6 {[%clk 0:01:22.6]} 28.
Re2 {[%clk 0:01:31.5]} 28... Rc2 {[%clk 0:01:12.9]} 29. Rbe1 {[%clk 0:01:25]}
29... Rxe2 {[%clk 0:01:04.4]} 30. Rxe2 {[%clk 0:01:25.9]} 30... Qc7 {[%clk
0:00:35.3]} 31. Re7 {[%clk 0:01:22.9]} 31... Qc1+ {[%clk 0:00:35]} 32. Kh2
{[%clk 0:01:23.5]} 32... Rf8 {[%clk 0:00:35.7]} 33. Qxd6 {[%clk 0:01:21.8]}
33... Qxa3 {[%clk 0:00:26.3]} 34. Rxb7 {[%clk 0:01:20.4]} 34... Qd3 {[%clk
0:00:23]} 35. Ra7 {[%clk 0:01:15]} 35... Qd4 {[%clk 0:00:15.7]} 36. Rxa6 {[%clk
0:01:00.3]} 36... Qxf2 {[%clk 0:00:15.9]} 37. Rc6 {[%clk 0:00:57.3]} 37... Re8
{[%clk 0:00:15.2]} 38. Qg3 {[%clk 0:00:52.6]} 38... Qd2 {[%clk 0:00:14.6]} 39.
d6 {[%clk 0:00:49.9]} 39... Qxb4 {[%clk 0:00:09.7]} 40. d7 {[%clk 0:00:47.8]}
40... Rd8 {[%clk 0:00:10.3]} 41. Rc8 {[%clk 0:00:44]} 41... Qe7 {[%clk
0:00:04.6]} 42. Qc7 {[%clk 0:00:40.2]} 1-0

[Event "Early-Titled-Tuesday-Blitz-February-27-2024"]
[Site "Chess.com"]
[Date "2024.02.27"]
[Round "9"]
[White "HelvertHernandez"]
[Black "AnaKuchava"]
[Result "1-0"]
[WhiteElo "2008"]
[BlackElo "2149"]
[TimeControl "180+1"]
[EndTime "9:44:45 PST"]
[Termination "HelvertHernandez won by checkmate"]

1. e4 {[%clk 0:02:21.8]} 1... c5 {[%clk 0:02:29.6]} 2. Nf3 {[%clk 0:02:21.2]}
2... d6 {[%clk 0:02:23.9]} 3. d4 {[%clk 0:02:20.7]} 3... cxd4 {[%clk 0:02:22.5]}
4. Nxd4 {[%clk 0:02:21.4]} 4... Nf6 {[%clk 0:02:22.9]} 5. Nc3 {[%clk 0:02:21.9]}
5... Nc6 {[%clk 0:02:23.4]} 6. Nb3 {[%clk 0:02:10.9]} 6... g6 {[%clk 0:02:22.2]}
7. f3 {[%clk 0:02:08.9]} 7... Bg7 {[%clk 0:02:21.1]} 8. Be3 {[%clk 0:02:07.6]}
8... O-O {[%clk 0:02:17.9]} 9. Qd2 {[%clk 0:02:06.4]} 9... a6 {[%clk 0:02:13.7]}
10. O-O-O {[%clk 0:02:04.5]} 10... b5 {[%clk 0:02:09.9]} 11. g4 {[%clk
0:02:03.2]} 11... b4 {[%clk 0:02:08.2]} 12. Nd5 {[%clk 0:02:01.6]} 12... Nxd5
{[%clk 0:02:05.7]} 13. exd5 {[%clk 0:02:01.6]} 13... Ne5 {[%clk 0:02:05.7]} 14.
Be2 {[%clk 0:01:59.6]} 14... a5 {[%clk 0:02:02.5]} 15. h4 {[%clk 0:01:55.4]}
15... a4 {[%clk 0:02:01.1]} 16. Nd4 {[%clk 0:01:50.4]} 16... b3 {[%clk
0:02:00.3]} 17. cxb3 {[%clk 0:01:47.5]} 17... axb3 {[%clk 0:02:01.2]} 18. a3
{[%clk 0:01:45.2]} 18... Qc7+ {[%clk 0:01:58.3]} 19. Kb1 {[%clk 0:01:44.6]}
19... Ba6 {[%clk 0:01:46.7]} 20. Rc1 {[%clk 0:01:32.5]} 20... Qb7 {[%clk
0:01:41.1]} 21. Nc6 {[%clk 0:01:19]} 21... Rfc8 {[%clk 0:01:28.8]} 22. Nxe5
{[%clk 0:01:06.4]} 22... Bxe5 {[%clk 0:01:29.7]} 23. f4 {[%clk 0:00:59.5]} 23...
Bg7 {[%clk 0:01:24.3]} 24. Bxa6 {[%clk 0:00:49.9]} 24... Qxa6 {[%clk 0:01:10.9]}
25. Bd4 {[%clk 0:00:47.1]} 25... Rxc1+ {[%clk 0:01:05.4]} 26. Rxc1 {[%clk
0:00:45.3]} 26... Rc8 {[%clk 0:01:05.7]} 27. Bxg7 {[%clk 0:00:40.1]} 27... Kxg7
{[%clk 0:01:03.9]} 28. Rxc8 {[%clk 0:00:33.6]} 28... Qxc8 {[%clk 0:01:02.5]} 29.
Qc3+ {[%clk 0:00:33.9]} 29... Qxc3 {[%clk 0:00:53.1]} 30. bxc3 {[%clk
0:00:34.4]} 30... e6 {[%clk 0:00:48.5]} 31. dxe6 {[%clk 0:00:20.5]} 31... fxe6
{[%clk 0:00:48.4]} 32. a4 {[%clk 0:00:20.7]} 32... Kf7 {[%clk 0:00:44.4]} 33. a5
{[%clk 0:00:20.9]} 33... Ke7 {[%clk 0:00:44.3]} 34. a6 {[%clk 0:00:21.3]} 34...
Kd7 {[%clk 0:00:45]} 35. a7 {[%clk 0:00:21.8]} 35... Kc7 {[%clk 0:00:45.8]} 36.
a8=Q {[%clk 0:00:21.6]} 36... d5 {[%clk 0:00:44.7]} 37. Qh8 {[%clk 0:00:21]}
37... h5 {[%clk 0:00:42.8]} 38. Qh7+ {[%clk 0:00:20.6]} 38... Kd6 {[%clk
0:00:42.6]} 39. Qxg6 {[%clk 0:00:20.9]} 39... hxg4 {[%clk 0:00:43.1]} 40. Qxg4
{[%clk 0:00:20.6]} 40... Kc5 {[%clk 0:00:44]} 41. Qd1 {[%clk 0:00:20]} 41... Kc4
{[%clk 0:00:44.9]} 42. h5 {[%clk 0:00:20.3]} 42... Kxc3 {[%clk 0:00:43.7]} 43.
h6 {[%clk 0:00:20.8]} 43... d4 {[%clk 0:00:43.5]} 44. h7 {[%clk 0:00:21.2]}
44... d3 {[%clk 0:00:44.4]} 45. h8=Q+ {[%clk 0:00:21]} 45... Kc4 {[%clk
0:00:44.9]} 46. Qc8+ {[%clk 0:00:21]} 46... Kb4 {[%clk 0:00:44.8]} 47. Qxd3
{[%clk 0:00:20.2]} 47... e5 {[%clk 0:00:45.7]} 48. Qdc4+ {[%clk 0:00:20.2]}
48... Ka3 {[%clk 0:00:46]} 49. Qa8# {[%clk 0:00:19.5]} 1-0

[Event "Early-Titled-Tuesday-Blitz-February-27-2024"]
[Site "Chess.com"]
[Date "2024.02.27"]
[Round "9"]
[White "Defenstrator"]
[Black "Ariadna_Atreides"]
[Result "1-0"]
[WhiteElo "2393"]
[BlackElo "2187"]
[TimeControl "180+1"]
[EndTime "9:44:46 PST"]
[Termination "Defenstrator won by checkmate"]

1. Nf3 {[%clk 0:03:00.3]} 1... Nf6 {[%clk 0:02:59]} 2. e3 {[%clk 0:02:47.7]}
2... e6 {[%clk 0:02:58.3]} 3. d4 {[%clk 0:02:39.4]} 3... b6 {[%clk 0:02:56.2]}
4. Be2 {[%clk 0:02:34.8]} 4... Bb7 {[%clk 0:02:56.6]} 5. O-O {[%clk 0:02:35.4]}
5... Be7 {[%clk 0:02:56]} 6. c4 {[%clk 0:02:32.5]} 6... O-O {[%clk 0:02:55.2]}
7. Nc3 {[%clk 0:02:33.3]} 7... Ne4 {[%clk 0:02:54.4]} 8. Qc2 {[%clk 0:02:28.8]}
8... f5 {[%clk 0:02:53.1]} 9. Nd2 {[%clk 0:02:26.2]} 9... Nxc3 {[%clk
0:02:49.2]} 10. Qxc3 {[%clk 0:02:27.1]} 10... d6 {[%clk 0:02:46.4]} 11. Bf3
{[%clk 0:02:21.2]} 11... Bxf3 {[%clk 0:02:43.5]} 12. Nxf3 {[%clk 0:02:22.1]}
12... Nd7 {[%clk 0:02:33.8]} 13. b4 {[%clk 0:02:22.4]} 13... c5 {[%clk
0:02:27.7]} 14. bxc5 {[%clk 0:02:21.7]} 14... bxc5 {[%clk 0:02:25.7]} 15. Rb1
{[%clk 0:02:12.4]} 15... Bf6 {[%clk 0:02:23.3]} 16. Qd3 {[%clk 0:02:06.4]} 16...
g6 {[%clk 0:02:17]} 17. e4 {[%clk 0:02:01.1]} 17... cxd4 {[%clk 0:02:12.2]} 18.
exf5 {[%clk 0:01:59.2]} 18... Nc5 {[%clk 0:02:01.3]} 19. Qd1 {[%clk 0:01:54.6]}
19... gxf5 {[%clk 0:01:52.1]} 20. Nxd4 {[%clk 0:01:54.8]} 20... Qd7 {[%clk
0:01:40.9]} 21. Nb5 {[%clk 0:01:51.9]} 21... Rad8 {[%clk 0:01:39.1]} 22. Bf4
{[%clk 0:01:47.1]} 22... e5 {[%clk 0:01:32.3]} 23. Qd5+ {[%clk 0:01:46.5]} 23...
Kh8 {[%clk 0:01:31.2]} 24. Be3 {[%clk 0:01:45.1]} 24... a6 {[%clk 0:01:18]} 25.
Nxd6 {[%clk 0:01:43.1]} 25... Na4 {[%clk 0:00:58.9]} 26. Rb7 {[%clk 0:01:34.9]}
26... Qxd6 {[%clk 0:00:32]} 27. Qa5 {[%clk 0:01:34.9]} 27... Qa3 {[%clk
0:00:25.7]} 28. Rb4 {[%clk 0:01:20.5]} 28... f4 {[%clk 0:00:19.6]} 29. Rxa4
{[%clk 0:01:20.5]} 29... Qb2 {[%clk 0:00:18]} 30. Bb6 {[%clk 0:01:11.2]} 30...
f3 {[%clk 0:00:18]} 31. Bxd8 {[%clk 0:01:07.9]} 31... Bxd8 {[%clk 0:00:17]} 32.
Qd5 {[%clk 0:01:01.9]} 32... fxg2 {[%clk 0:00:16]} 33. Kxg2 {[%clk 0:00:59.6]}
33... Rg8+ {[%clk 0:00:15.1]} 34. Kh1 {[%clk 0:00:59.5]} 34... Bg5 {[%clk
0:00:14.1]} 35. Rxa6 {[%clk 0:00:52.4]} 35... Bf4 {[%clk 0:00:13.5]} 36. Qf7
{[%clk 0:00:40.6]} 36... Bg5 {[%clk 0:00:05.1]} 37. Ra7 {[%clk 0:00:34.4]} 37...
Qb3 {[%clk 0:00:04.2]} 38. Qxh7# {[%clk 0:00:33.5]} 1-0

[Event "Early-Titled-Tuesday-Blitz-February-27-2024"]
[Site "Chess.com"]
[Date "2024.02.27"]
[Round "9"]
[White "Aslanov_Umid"]
[Black "orkinyo12345"]
[Result "0-1"]
[WhiteElo "2658"]
[BlackElo "2501"]
[TimeControl "180+1"]
[EndTime "9:44:47 PST"]
[Termination "orkinyo12345 won by resignation"]

1. e4 {[%clk 0:03:00.9]} 1... c5 {[%clk 0:02:58]} 2. Nf3 {[%clk 0:03:01.1]} 2...
d6 {[%clk 0:02:58]} 3. d4 {[%clk 0:03:01.6]} 3... cxd4 {[%clk 0:02:58.9]} 4.
Nxd4 {[%clk 0:03:02.5]} 4... Nf6 {[%clk 0:02:58.9]} 5. Nc3 {[%clk 0:03:03.3]}
5... a6 {[%clk 0:02:59.5]} 6. Bc4 {[%clk 0:03:03.9]} 6... Nbd7 {[%clk
0:02:55.6]} 7. Bb3 {[%clk 0:02:42.6]} 7... e6 {[%clk 0:02:47.2]} 8. f4 {[%clk
0:02:41.9]} 8... Be7 {[%clk 0:02:46.4]} 9. Qe2 {[%clk 0:02:34]} 9... Nc5 {[%clk
0:02:39.5]} 10. e5 {[%clk 0:02:32.9]} 10... dxe5 {[%clk 0:02:38.9]} 11. fxe5
{[%clk 0:02:33.8]} 11... Qxd4 {[%clk 0:02:33.9]} 12. exf6 {[%clk 0:02:34.2]}
12... Bxf6 {[%clk 0:02:32.7]} 13. Be3 {[%clk 0:02:34.2]} 13... Qb4 {[%clk
0:02:13.8]} 14. Bd2 {[%clk 0:02:19.7]} 14... Nxb3 {[%clk 0:01:49.4]} 15. axb3
{[%clk 0:02:18]} 15... Qb6 {[%clk 0:01:47.7]} 16. Nd5 {[%clk 0:01:22.6]} 16...
Qd8 {[%clk 0:01:43.1]} 17. c4 {[%clk 0:01:18.5]} 17... O-O {[%clk 0:01:41.5]}
18. Ba5 {[%clk 0:01:15]} 18... Bh4+ {[%clk 0:00:46.7]} 19. g3 {[%clk 0:01:08.7]}
19... Qd6 {[%clk 0:00:46.2]} 20. Bb4 {[%clk 0:00:58.4]} 20... Qc6 {[%clk
0:00:43.8]} 21. Bxf8 {[%clk 0:00:47.9]} 21... exd5 {[%clk 0:00:42.5]} 22. gxh4
{[%clk 0:00:45.8]} 22... Kxf8 {[%clk 0:00:35.1]} 23. O-O-O {[%clk 0:00:46.2]}
23... Be6 {[%clk 0:00:32.2]} 24. Rhf1 {[%clk 0:00:29]} 24... dxc4 {[%clk
0:00:26.2]} 25. Kb1 {[%clk 0:00:29.1]} 25... Re8 {[%clk 0:00:16.7]} 26. Qc2
{[%clk 0:00:19.3]} 26... Qb5 {[%clk 0:00:16.7]} 27. Qxh7 {[%clk 0:00:16.8]}
27... cxb3 {[%clk 0:00:14.2]} 28. Rde1 {[%clk 0:00:11.7]} 28... Bf5+ {[%clk
0:00:12.9]} 0-1